bitfinex-derivatives/quotes_BNBF0:USTF0_20250112
["timestamp","ask_amount","ask_price","bid_price","bid_amount"]
[1736651748661,1.07361193,696.05,695.49,1.609]
[1736651750062,1.07361193,696.07,695.49,1.609]
[1736651751166,1.07361193,696.08,695.49,1.609]
[1736651753862,1.07361193,696.1,695.49,1.609]
[1736651756768,0.88795297,696.4,695.49,1.609]
[1736651756769,1.07361193,696.07,695.49,1.609]
[1736651761271,1.07361193,696.08,695.49,1.609]
[1736651761972,1.07361193,696.06,695.49,1.609]
[1736651762867,1.07361193,696.05,695.49,1.609]
[1736651763870,1.07361193,696.04,695.49,1.609]
[1736651765470,1.07361193,696.05,695.49,1.609]
[1736651766368,1.07361193,696.04,695.49,1.609]
[1736651767171,1.07361193,696.05,695.49,1.609]
[1736651769167,1.07361193,696.03,695.49,1.609]
[1736651770273,1.07361193,696.04,695.49,1.609]
[1736651771172,1.07361193,696.05,695.49,1.609]
[1736651772871,1.07361193,696.09,695.49,1.609]
[1736651775076,1.07361193,696.1,695.49,1.609]
[1736651776082,1.07361193,696.12,695.49,1.609]
[1736651776683,1.07361193,696.16,695.49,1.609]
[1736651777785,1.07361193,696.14,695.49,1.609]
[1736651778684,0.88795297,696.4,695.49,1.609]
[1736651778685,1.07361193,696.11,695.49,1.609]
[1736651780684,1.07361193,696.1,695.49,1.609]
[1736651781884,1.07361193,696.11,695.49,1.609]
[1736651782682,1.07361193,696.07,695.49,1.609]
[1736651785589,0.88795297,696.4,695.49,1.609]
[1736651785590,1.07361193,696.06,695.49,1.609]
[1736651786889,1.07361193,696.07,695.49,1.609]
[1736651787689,1.07361193,696.06,695.49,1.609]
[1736651789691,1.07361193,696.05,695.49,1.609]
[1736651790487,1.07361193,696.04,695.49,1.609]
[1736651792793,1.07361193,696.03,695.49,1.609]
[1736651795798,1.07361193,696.01,695.49,1.609]
[1736651796994,0.88795297,696.4,695.49,1.609]
[1736651796995,1.07361193,696.03,695.49,1.609]
[1736651798397,1.07361193,696.04,695.49,1.609]
[1736651800599,1.07361193,696.03,695.49,1.609]
[1736651801702,1.07361193,696.01,695.49,1.609]
[1736651803297,1.07361193,696.04,695.49,1.609]
[1736651804102,1.07361193,696.05,695.49,1.609]
[1736651806103,1.07361193,696.06,695.49,1.609]
[1736651808106,1.07361193,696.07,695.49,1.609]
[1736651809007,1.07361193,696.06,695.49,1.609]
[1736651810107,1.07361193,696.07,695.49,1.609]
[1736651811709,1.07361193,696.06,695.49,1.609]
[1736651812509,1.07361193,696.08,695.49,1.609]
[1736651814811,1.07361193,696.06,695.49,1.609]
[1736651816715,1.07361193,696.05,695.49,1.609]
[1736651817712,1.07361193,696.04,695.49,1.609]
[1736651821019,1.07361193,696.03,695.49,1.609]
[1736651821711,1.07361193,696.06,695.49,1.609]
[1736651822819,1.07361193,696.05,695.49,1.609]
[1736651823822,1.07361193,696.03,695.49,1.609]
[1736651825017,1.07361193,696.1,695.49,1.609]
[1736651826016,1.07361193,696.09,695.49,1.609]
[1736651827126,1.07361193,696.1,695.49,1.609]
[1736651827922,0.28725726,696.24,695.49,1.609]
[1736651827923,1.07361193,696.09,695.49,1.609]
[1736651830026,1.07361193,696.07,695.49,1.609]
[1736651832224,1.07361193,696.06,695.49,1.609]
[1736651833325,1.07361193,696.09,695.49,1.609]
[1736651835128,1.07361193,696.01,695.49,1.609]
[1736651837131,1.07361193,695.99,695.49,1.609]
[1736651838626,1.07361193,695.98,695.49,1.609]
[1736651842028,1.07361193,695.97,695.49,1.609]
[1736651843136,1.07361193,696.07,695.49,1.609]
[1736651844132,1.07361193,696.06,695.49,1.609]
[1736651847337,1.07361193,696.01,695.49,1.609]
[1736651849836,1.07361193,696.0,695.49,1.609]
[1736651851136,1.07361193,695.99,695.49,1.609]
[1736651851935,1.07361193,696.06,695.49,1.609]
[1736651852939,1.07361193,696.05,695.49,1.609]
[1736651854440,1.07361193,696.06,695.49,1.609]
[1736651857536,1.07361193,696.05,695.49,1.609]
[1736651858643,1.07361193,696.06,695.49,1.609]
[1736651859443,1.07361193,696.05,695.49,1.609]
[1736651860345,1.07361193,696.06,695.49,1.609]
[1736651861242,1.07361193,696.0,695.49,1.609]
[1736651862445,1.07361193,696.03,695.49,1.609]
[1736651863348,1.07361193,696.01,695.49,1.609]
[1736651864548,1.07361193,696.02,695.49,1.609]
[1736651865746,1.07361193,696.03,695.49,1.609]
[1736651867550,1.07361193,696.04,695.49,1.609]
[1736651868551,1.50090032,696.2,695.49,1.609]
[1736651868552,1.07361193,696.05,695.49,1.609]
[1736651869754,1.07361193,696.04,695.49,1.609]
[1736651872654,1.07361193,696.0,695.49,1.609]
[1736651873854,1.50090032,696.2,695.49,1.609]
[1736651873855,1.07361193,695.92,695.49,1.609]
[1736651875451,1.07361193,695.91,695.49,1.609]
[1736651876658,1.50090032,696.2,695.49,1.609]
[1736651876956,0.28727789,696.19,695.49,1.609]
[1736651880359,1.36088982,696.19,695.49,1.609]
[1736651881558,0.28727789,696.19,695.49,1.609]
[1736651882458,1.07361193,696.18,695.49,1.609]
[1736651882658,0.28728615,696.17,695.49,1.609]
[1736651883559,1.36089808,696.17,695.49,1.609]
[1736651884360,0.28728615,696.17,695.49,1.609]
[1736651886058,1.07361193,696.06,695.49,1.609]
[1736651886255,0.28733567,696.05,695.49,1.609]
[1736651887054,1.3609476,696.05,695.49,1.609]
[1736651890359,1.07361193,696.04,695.49,1.609]
[1736651890964,1.36095173,696.04,695.49,1.609]
[1736651891765,1.07361193,696.03,695.49,1.609]
[1736651894069,1.07361193,695.96,695.49,1.609]
[1736651895169,1.07361193,696.02,695.49,1.609]
[1736651896873,1.07361193,696.01,695.49,1.609]
[1736651899578,1.07361193,696.0,695.49,1.609]
[1736651904178,0.2873398,696.04,695.49,1.609]
[1736651904179,1.07361193,695.91,695.49,1.609]
[1736651905280,1.07361193,696.0,695.49,1.609]
[1736651907081,0.2873398,696.04,695.49,1.609]
[1736651925706,1.07361193,695.99,695.49,1.609]
[1736651926707,0.2873398,696.04,695.49,1.609]
[1736651940415,1.07361193,695.96,695.49,1.609]
[1736651941516,1.07361193,695.95,695.49,1.609]
[1736651942416,1.07361193,695.96,695.49,1.609]
[1736651943319,0.2873398,696.04,695.49,1.609]
[1736652016178,1.07361193,696.31,695.49,1.609]
[1736652016980,1.07361193,696.43,695.49,1.609]
[1736652018076,0.2871253,696.56,695.49,1.609]
[1736652018077,1.07361193,696.42,695.49,1.609]
[1736652018982,0.28718714,696.41,695.49,1.609]
[1736652020283,1.07361193,696.4,695.49,1.609]
[1736652021184,1.07361193,696.34,695.49,1.609]
[1736652023390,1.07361193,696.28,695.49,1.609]
[1736652024087,1.07361193,696.29,695.49,1.609]
[1736652025185,1.07361193,696.33,695.49,1.609]
[1736652026088,0.28718714,696.41,695.49,1.609]
[1736652026089,1.07361193,696.34,695.49,1.609]
[1736652026590,1.07361193,696.31,695.49,1.609]
[1736652029092,1.07361193,696.3,695.49,1.609]
[1736652031793,1.07361193,696.29,695.49,1.609]
[1736652034694,0.28718714,696.41,695.49,1.609]
[1736652034695,1.07361193,696.17,695.49,1.609]
[1736652035698,1.07361193,696.29,695.49,1.609]
[1736652039200,0.28724076,696.28,695.49,1.609]
[1736652042607,0.28724076,696.28,695.49,1.60007557]
[1736652046310,1.07361193,696.25,695.49,1.60007557]
[1736652046510,0.28725726,696.24,695.49,1.60007557]
[1736652048107,0.264221,696.23,695.49,1.60007557]
[1736652048308,0.28726551,696.22,695.49,1.60007557]
[1736652048909,0.26422822,696.21,695.49,1.60007557]
[1736652049105,0.28727377,696.2,695.49,1.60007557]
[1736652049304,0.26422822,696.19,695.49,1.60007557]
[1736652049512,0.28728202,696.18,695.49,1.60007557]
[1736652049712,0.26422822,696.17,695.49,1.60007557]
[1736652049911,0.28729027,696.16,695.49,1.60007557]
[1736652052713,0.26423484,696.15,695.49,1.60007557]
[1736652053017,0.28729853,696.14,695.49,1.60007557]
[1736652054820,0.26424613,696.13,695.49,1.60007557]
[1736652055020,0.28730678,696.12,695.49,1.60007557]
[1736652059125,0.26423702,696.11,695.49,1.60007557]
[1736652059319,0.28731504,696.1,695.49,1.60007557]
[1736652063927,0.26423507,696.09,695.49,1.60007557]
[1736652064130,0.28732329,696.08,695.49,1.60007557]
[1736652065328,0.26423416,696.07,695.49,1.60007557]
[1736652065729,0.28733155,696.06,695.49,1.60007557]
[1736652072233,0.26424677,696.05,695.49,1.60007557]
[1736652072429,0.2873398,696.04,695.49,1.60007557]
[1736652074939,1.36095173,696.04,695.49,1.60007557]
[1736652076037,1.07361193,695.99,695.49,1.60007557]
[1736652076235,0.28736457,695.98,695.49,1.60007557]
[1736652076835,0.26429951,695.97,694.04,1.29080808]
[1736652077036,1.36098476,695.96,694.06,1.5789676]
[1736652077236,0.55168937,695.95,694.08,0.28815122]
[1736652077437,0.5516935,695.94,694.08,0.28815122]
[1736652077632,0.55169763,695.93,694.08,0.28815122]
[1736652077839,1.50111613,696.0,694.08,0.28815122]
[1736652077840,1.07361193,695.82,694.08,0.28815122]
[1736652078138,0.28743478,695.81,694.08,0.28815122]
[1736652079138,1.07361193,695.8,694.08,1.83415122]
[1736652079434,0.28744305,695.79,694.08,1.83415122]
[1736652083138,0.28744305,695.79,694.08,4.86281435]
[1736652083339,0.28744305,695.79,694.09,1.80778461]
[1736652083640,0.28744305,695.79,694.11,0.28813876]
[1736652094346,0.26433309,695.78,694.11,0.28813876]
[1736652094544,0.28745131,695.77,694.11,0.28813876]
[1736652094742,0.26433309,695.76,694.11,0.28813876]
[1736652094940,0.28745957,695.75,694.11,0.28813876]
[1736652095142,0.28745957,695.75,694.18,1.29080808]
[1736652095341,0.28745957,695.75,694.19,0.28810556]
[1736652097550,0.28745957,695.75,694.19,2.14310556]
[1736652107557,0.26437421,695.74,694.19,2.14310556]
[1736652107855,0.28746783,695.73,694.19,2.14310556]
[1736652108857,1.07361193,695.72,694.19,2.14310556]
[1736652109053,0.2874761,695.71,694.19,2.14310556]
[1736652109859,1.07361193,695.69,694.19,2.14310556]
[1736652110058,0.2874885,695.68,694.19,2.14310556]
[1736652110858,1.07361193,695.67,694.19,2.14310556]
[1736652111053,0.28749676,695.66,694.19,2.14310556]
[1736652111860,1.07361193,695.64,694.19,2.14310556]
[1736652113060,1.07361193,695.65,694.19,2.14310556]
[1736652113957,1.07361193,695.64,694.19,2.14310556]
[1736652115758,1.07361193,695.65,694.19,2.14310556]
[1736652116664,1.36110869,695.66,694.19,2.14310556]
[1736652117664,1.07361193,695.65,694.19,2.14310556]
[1736652118761,1.36110869,695.66,694.19,2.14310556]
[1736652120965,0.28749676,695.66,694.19,2.14310556]
[1736652125868,0.26437379,695.65,694.19,2.14310556]
[1736652126070,0.28749676,695.66,694.19,2.14310556]
[1736652126270,0.26437375,695.65,694.19,2.14310556]
[1736652126462,0.28749676,695.66,694.19,2.14310556]
[1736652126867,1.07361193,695.65,694.19,2.14310556]
[1736652128665,0.28749676,695.66,694.19,2.14310556]
[1736652131370,1.07361193,695.65,694.19,2.14310556]
[1736652133972,1.36110869,695.66,694.19,2.14310556]
[1736652135275,0.28749676,695.66,694.19,2.14310556]
[1736652136975,1.07361193,695.65,694.19,2.14310556]
[1736652137371,1.36111282,695.65,694.19,2.14310556]
[1736652137773,1.07361193,695.64,694.19,2.14310556]
[1736652138579,0.28750089,695.65,694.19,2.14310556]
[1736652154485,0.28750089,695.65,694.19,3.43391364]
[1736652156582,0.28750089,695.65,694.19,8.2859273]
[1736652156787,0.28750089,695.65,694.2,2.74976275]
[1736652156987,0.28750089,695.65,694.21,0.28809726]
[1736652157588,0.28750089,695.65,694.21,3.03786001]
[1736652158988,0.28750089,695.65,694.21,0.28809726]
[1736652165992,0.28750089,695.65,694.32,1.29080808]
[1736652166897,0.28750089,695.65,694.23,4.85201366]
[1736652167096,0.28750089,695.65,694.24,2.10728192]
[1736652167297,0.28750089,695.65,694.25,0.28808066]
[1736652216520,0.28750089,695.65,694.25,2.02908066]
[1736652225926,0.28750089,695.65,694.25,3.8500694]
[1736652227323,0.28750089,695.65,694.26,3.03281655]
[1736652227525,0.28750089,695.65,694.27,0.28807236]
[1736652230829,0.28750089,695.65,694.27,2.1090611]
[1736652231234,0.28750089,695.65,694.27,0.28807236]
[1736652235132,1.07361193,695.79,694.12,1.29080808]
[1736652235337,1.07361193,695.78,694.14,1.29080808]
[1736652235936,1.07361193,695.77,694.15,1.29080808]
[1736652236936,1.07361193,695.76,694.16,1.29080808]
[1736652237837,1.07361193,695.78,694.19,1.29080808]
[1736652238837,1.07361193,695.78,694.2,1.29080808]
[1736652240039,1.07361193,695.77,694.21,1.29080808]
[1736652241040,1.07361193,695.83,694.27,1.29080808]
[1736652243341,1.07361193,695.8,694.27,1.29080808]
[1736652244345,1.07361193,695.77,694.25,1.29080808]
[1736652244739,0.26432496,695.76,694.25,1.29080808]
[1736652245141,0.26432496,695.76,694.23,1.29080808]
[1736652245438,1.07361193,695.77,694.23,1.29080808]
[1736652246043,1.07361193,695.78,694.22,2.75147237]
[1736652246238,1.07361193,695.78,694.23,3.03281655]
[1736652246542,1.07361193,695.78,694.23,5.78428892]
[1736652246736,1.07361193,695.78,694.24,2.75147237]
[1736652247445,1.07361193,695.71,694.24,2.75147237]
[1736652247643,1.07361193,695.71,694.22,2.75147237]
[1736652249245,1.50231499,695.92,694.18,3.03281655]
[1736652249246,1.07361193,695.7,694.19,2.75147237]
[1736652250644,1.07361193,695.7,694.19,5.78428892]
[1736652250845,1.07361193,695.7,694.2,2.75147237]
[1736652252640,1.07361193,695.69,694.2,4.04228045]
[1736652253046,1.07361193,695.69,694.21,3.03281655]
[1736652253247,1.07361193,695.69,694.21,5.78428892]
[1736652253441,1.07361193,695.78,694.22,2.75147237]
[1736652254549,1.07361193,695.78,694.22,1.82098874]
[1736652254848,1.07361193,695.78,694.21,3.03281655]
[1736652254849,1.07361193,695.88,694.23,1.29080808]
[1736652255548,1.07361193,695.91,694.16,2.75140683]
[1736652255848,1.07361193,695.91,694.17,3.03281655]
[1736652256047,1.07361193,695.91,694.17,5.78422338]
[1736652256244,1.07361193,695.9,694.18,1.82098874]
[1736652256444,1.07361193,695.9,694.17,4.85380529]
[1736652256950,1.07361193,695.9,694.18,0.93037872]
[1736652257248,1.50231499,695.92,694.17,1.82098874]
[1736652257249,0.28740174,695.89,694.2,0.28810141]
[1736652262645,1.07361193,695.85,694.2,0.28810141]
[1736652263553,1.07361193,695.82,694.2,0.28810141]
[1736652265150,0.28740174,695.89,694.25,1.29080808]
[1736652265151,1.07361193,695.78,694.25,1.29080808]
[1736652265355,1.07361193,695.78,694.26,0.28807651]
[1736652266551,1.07361193,695.8,694.26,0.28807651]
[1736652267151,1.07361193,695.79,694.26,0.28807651]
[1736652269158,1.07361193,695.78,694.26,0.28807651]
[1736652269952,1.07361193,695.79,694.26,1.72507651]
[1736652272657,1.07361193,695.79,694.26,2.65545523]
[1736652273757,1.07361193,695.79,694.26,5.68827178]
[1736652274053,1.07361193,695.79,694.27,2.75136746]
[1736652274258,1.07361193,695.79,694.28,0.28806821]
[1736652275160,1.07361193,695.79,694.28,3.03943567]
[1736652276160,1.07361193,695.69,694.43,1.29080808]
[1736652276962,1.07361193,695.7,694.42,1.29080808]
[1736652277864,1.07361193,695.76,694.48,1.29080808]
[1736652279965,1.07361193,695.75,694.5,1.29080808]
[1736652280862,1.07361193,695.81,694.43,2.75136746]
[1736652281467,1.07361193,695.81,694.39,2.75136746]
[1736652281767,1.07361193,695.8,694.39,2.75136746]
[1736652282969,1.07361193,695.78,694.39,4.04217554]
[1736652283167,1.07361193,695.78,694.4,3.03281655]
[1736652283361,1.07361193,695.78,694.4,5.78418401]
[1736652283565,1.07361193,695.78,694.41,2.75136746]
[1736652284469,1.07361193,695.77,694.41,5.78418401]
[1736652284767,1.07361193,695.77,694.42,2.75136746]
[1736652285368,1.07361193,695.7,694.42,2.75136746]
[1736652286065,1.07361193,695.7,694.38,2.75136746]
[1736652286267,1.07361193,695.69,694.38,3.03939418]
[1736652287162,1.07361193,695.67,694.41,1.29080808]
[1736652289068,1.07361193,695.67,694.42,1.29080808]
[1736652290369,1.07361193,695.67,694.42,4.32362463]
[1736652290571,1.07361193,695.63,694.5,1.29080808]
[1736652292468,1.07361193,695.64,694.52,1.29080808]
[1736652293373,1.07361193,695.64,694.51,1.29080808]
[1736652294069,1.07361193,695.64,694.52,1.29080808]
[1736652296676,1.07361193,695.64,694.52,4.32362463]
[1736652296877,1.07361193,695.64,694.53,2.75136746]
[1736652297871,1.07361193,695.63,694.53,2.75136746]
[1736652298578,1.07361193,695.63,694.53,5.78418401]
[1736652298779,1.07361193,695.64,694.54,2.75136746]
[1736652300776,1.07361193,695.67,694.56,1.29080808]
[1736652301974,1.07361193,695.67,694.56,4.04217554]
[1736652302574,1.07361193,695.67,694.56,5.27117554]
[1736652302879,1.07361193,695.67,694.57,5.78418401]
[1736652303079,1.07361193,695.67,694.58,2.75136746]
[1736652304581,1.07361193,695.66,694.58,2.75136746]
[1736652306483,1.07361193,695.65,694.58,2.75136746]
[1736652307477,1.07361193,695.61,694.58,2.75136746]
[1736652308478,1.07361193,695.63,694.58,2.75136746]
[1736652309284,1.07361193,695.64,694.58,2.75136746]
[1736652310579,1.07361193,695.64,694.58,1.82098874]
[1736652310779,1.07361193,695.64,694.57,4.85380529]
[1736652311778,1.07361193,695.64,694.57,1.82098874]
[1736652311981,1.07361193,695.64,694.56,1.229]
[1736652312181,0.88740136,695.88,694.56,1.229]
[1736652312182,1.07361193,695.67,694.56,1.229]
[1736652313085,1.07361193,695.68,694.56,1.229]
[1736652314188,1.36101367,695.89,694.56,1.229]
[1736652314883,0.28740587,695.88,694.56,1.229]
[1736652322993,1.07361193,695.68,694.56,1.229]
[1736652324994,0.28740587,695.88,694.56,1.229]
[1736652324995,1.07361193,695.67,694.56,1.229]
[1736652325695,1.07361193,695.68,694.56,1.229]
[1736652328691,1.07361193,695.67,694.56,1.229]
[1736652329590,1.07361193,695.68,694.56,1.229]
[1736652330799,1.3610178,695.88,694.56,1.229]
[1736652330800,1.07361193,695.72,694.56,1.229]
[1736652332801,1.07361193,695.77,694.56,1.229]
[1736652333800,1.07361193,695.76,694.56,1.229]
[1736652337306,1.07361193,695.72,694.56,1.229]
[1736652339204,1.07361193,695.74,694.56,1.229]
[1736652341208,1.07361193,695.75,694.56,1.229]
[1736652342109,1.07361193,695.74,694.56,1.229]
[1736652342806,1.07361193,695.68,694.56,1.229]
[1736652345813,1.07361193,695.72,694.57,1.29080808]
[1736652346807,0.28740587,695.88,694.54,1.82200436]
[1736652347507,0.28740587,695.88,694.5,1.82200436]
[1736652347712,0.28740587,695.88,694.51,0.28797281]
[1736652356818,1.07361193,695.87,694.51,0.28797281]
[1736652360926,1.07361193,695.84,694.51,0.28797281]
[1736652361822,1.07361193,695.81,694.51,0.28797281]
[1736652362920,1.07361193,695.82,694.51,0.28797281]
[1736652364523,1.07361193,695.81,694.51,0.28797281]
[1736652365226,0.28740587,695.88,694.51,0.28797281]
[1736652375534,1.07361193,695.87,694.56,1.29080808]
[1736652376636,1.07361193,695.87,694.51,3.34083748]
[1736652376637,0.28740587,695.88,694.52,2.7527243]
[1736652376837,0.28740587,695.88,694.53,0.28796452]
[1736652380340,1.07361193,695.83,694.53,0.28796452]
[1736652381440,1.07361193,695.82,694.53,0.28796452]
[1736652382242,1.07361193,695.84,694.53,0.28796452]
[1736652384238,1.07361193,695.85,694.53,0.28796452]
[1736652385140,1.07361193,695.87,694.53,0.28796452]
[1736652385347,0.28741413,695.86,694.53,0.28796452]
[1736652412956,1.36102606,695.86,694.53,0.28796452]
[1736652413859,0.28741413,695.86,694.53,0.28796452]
[1736652416755,1.07467265,695.84,694.53,0.28796452]
[1736652418459,1.07467265,695.81,694.53,0.28796452]
[1736652419762,1.07467265,695.78,694.53,0.28796452]
[1736652421767,1.07467265,695.79,694.53,1.58144036]
[1736652422360,1.07467265,695.79,694.53,0.28796452]
[1736652423468,1.07467265,695.8,694.53,0.28796452]
[1736652424069,1.07467265,695.78,694.54,1.29347584]
[1736652425269,1.07467265,695.78,694.56,1.29347584]
[1736652426068,1.07467265,695.77,694.55,1.29347584]
[1736652427164,1.07467265,695.76,694.54,1.29347584]
[1736652428267,1.07467265,695.83,694.53,0.28796452]
[1736652428468,0.28743065,695.82,694.53,0.28796452]
[1736652433775,1.07467265,695.81,694.53,0.28796452]
[1736652434174,0.28743891,695.8,694.53,0.28796452]
[1736652437380,1.07467265,695.73,694.53,0.28796452]
[1736652437776,1.07467265,695.73,694.53,1.77696452]
[1736652439081,0.28743891,695.8,694.53,1.77696452]
[1736652446489,1.07467265,695.73,694.53,1.77696452]
[1736652446982,1.36214048,695.73,694.53,1.77696452]
[1736652447489,0.28746783,695.73,694.53,1.77696452]
[1736652450294,1.07467265,695.72,694.53,1.77696452]
[1736652450792,0.2874761,695.71,694.53,1.77696452]
[1736652461798,1.36214875,695.71,694.53,1.77696452]
[1736652465205,1.07467265,695.7,694.53,1.77696452]
[1736652466505,1.07467265,695.67,694.53,1.77696452]
[1736652467411,1.07467265,695.66,694.53,1.77696452]
[1736652469008,1.07467265,695.66,694.53,3.59765334]
[1736652470215,1.07467265,695.66,694.54,3.04792527]
[1736652470415,1.07467265,695.65,694.54,3.04792527]
[1736652471414,0.2874761,695.71,694.54,3.04792527]
[1736652471415,1.07467265,695.63,694.54,3.04792527]
[1736652471610,1.07467265,695.63,694.53,0.28796452]
[1736652472317,1.07467265,695.62,694.53,0.28796452]
[1736652473315,1.07467265,695.61,694.53,0.28796452]
[1736652474213,0.2874761,695.71,694.53,0.28796452]
[1736652474214,1.07467265,695.62,694.53,0.28796452]
[1736652475115,1.07467265,695.6,694.53,0.28796452]
[1736652479623,1.07467265,695.59,694.53,0.28796452]
[1736652483631,1.07467265,695.6,694.53,0.28796452]
[1736652484724,1.07467265,695.64,694.53,0.28796452]
[1736652485524,1.07467265,695.62,694.53,0.28796452]
[1736652486430,1.07467265,695.65,694.53,0.28796452]
[1736652487129,0.28750503,695.64,694.53,0.28796452]
[1736652487528,1.07467265,695.61,694.53,0.28796452]
[1736652490430,0.28750503,695.64,694.53,0.28796452]
[1736652494033,1.36217768,695.64,694.53,0.28796452]
[1736652496140,0.28750503,695.64,694.53,0.28796452]
[1736652496735,1.36217768,695.64,694.53,0.28796452]
[1736652498940,1.07467265,695.62,694.53,0.28796452]
[1736652500640,1.07467265,695.56,694.53,0.28796452]
[1736652501641,1.07467265,695.55,694.53,0.28796452]
[1736652502939,0.28750503,695.64,694.53,0.28796452]
[1736652502940,1.07467265,695.52,694.53,0.28796452]
[1736652503642,1.07467265,695.51,694.53,0.28796452]
[1736652504541,1.07467265,695.52,694.53,0.28796452]
[1736652505345,1.07467265,695.5,694.53,0.28796452]
[1736652506441,1.07467265,695.48,694.53,0.28796452]
[1736652507244,1.07467265,695.5,694.53,0.28796452]
[1736652508038,1.07467265,695.49,694.53,0.28796452]
[1736652509748,1.07467265,695.53,694.53,0.28796452]
[1736652510847,1.07467265,695.52,694.53,0.28796452]
[1736652511947,1.07467265,695.56,694.53,0.28796452]
[1736652512845,1.07467265,695.55,694.53,0.28796452]
[1736652515353,1.07467265,695.54,694.53,0.28796452]
[1736652516254,1.07467265,695.55,694.53,0.28796452]
[1736652517456,1.07467265,695.49,694.53,0.28796452]
[1736652519260,1.07467265,695.48,694.53,0.28796452]
[1736652520160,1.07467265,695.47,694.53,0.28796452]
[1736652520963,1.07467265,695.46,694.53,0.28796452]
[1736652522366,1.07467265,695.47,694.53,0.28796452]
[1736652523361,1.07467265,695.54,694.53,0.28796452]
[1736652524466,1.07467265,695.55,694.53,0.28796452]
[1736652525267,1.07467265,695.56,694.53,0.28796452]
[1736652527363,0.28750503,695.64,694.53,0.28796452]
[1736652532770,0.28750503,695.64,694.53,1.91896452]
[1736652558395,0.28750503,695.64,694.53,4.96688979]
[1736652560290,0.28750503,695.64,694.53,1.91896452]
[1736652599111,1.07467265,695.58,694.53,1.91896452]
[1736652602314,1.07467265,695.55,694.53,1.91896452]
[1736652603118,1.07467265,695.54,694.53,1.91896452]
[1736652604718,1.07467265,695.53,694.53,1.91896452]
[1736652607316,1.07467265,695.55,694.53,1.91896452]
[1736652608214,1.07467265,695.54,694.53,1.91896452]
[1736652609619,1.07467265,695.53,694.53,1.91896452]
[1736652611921,1.07467265,695.51,694.53,1.91896452]
[1736652614322,0.28750503,695.64,694.53,1.91896452]
[1736652614323,1.07467265,695.5,694.53,1.91896452]
[1736652615422,1.07467265,695.47,694.53,1.91896452]
[1736652616416,1.07467265,695.48,694.53,1.91896452]
[1736652617223,1.07467265,695.48,694.53,1.631]
[1736652617423,1.07467265,695.49,694.53,1.631]
[1736652619425,1.07467265,695.55,694.53,1.631]
[1736652621623,1.07467265,695.57,694.53,1.631]
[1736652622226,1.36220661,695.57,694.53,1.631]
[1736652622427,0.28753396,695.57,694.53,1.631]
[1736652624435,0.26439932,695.56,694.53,1.631]
[1736652624631,1.07467265,695.52,694.53,1.631]
[1736652625431,0.28753396,695.57,694.53,1.631]
[1736652626033,0.26440286,695.56,694.53,1.631]
[1736652627233,1.07467265,695.47,694.53,1.631]
[1736652628135,1.07467265,695.52,694.53,1.631]
[1736652630633,1.07467265,695.49,694.53,1.631]
[1736652632037,1.07467265,695.5,694.53,1.631]
[1736652634733,1.07467265,695.49,694.53,1.631]
[1736652635638,0.28753396,695.57,694.53,1.631]
[1736652645648,1.07467265,695.56,694.53,1.631]
[1736652646649,1.07467265,695.55,694.53,1.631]
[1736652647245,1.07467265,695.54,694.53,1.631]
[1736652650349,1.07467265,695.52,694.53,1.631]
[1736652651546,1.07467265,695.5,694.53,1.631]
[1736652654956,1.07467265,695.41,694.53,1.631]
[1736652656156,1.07467265,695.39,694.53,1.631]
[1736652658061,1.07467265,695.34,694.53,1.631]
[1736652659158,1.07467265,695.35,694.53,1.631]
[1736652663063,1.07467265,695.36,694.53,1.631]
[1736652664962,1.07467265,695.37,694.53,1.631]
[1736652665959,1.07467265,695.36,694.53,1.631]
[1736652667367,1.07467265,695.39,694.53,1.631]
[1736652668266,1.07467265,695.44,694.53,1.631]
[1736652669367,1.07467265,695.49,694.53,1.631]
[1736652670367,1.07467265,695.52,694.53,1.631]
[1736652671368,1.07467265,695.53,694.53,1.631]
[1736652672363,1.36220661,695.57,694.53,1.631]
[1736652674768,1.07467265,695.55,694.53,1.631]
[1736652675867,0.28753396,695.57,694.53,1.631]
[1736652696584,1.07242174,695.56,694.53,1.631]
[1736652697487,0.28753396,695.57,694.53,1.631]
[1736652707093,1.3599557,695.57,694.53,1.631]
[1736652707994,1.07242174,695.52,694.53,1.631]
[1736652709595,0.28753396,695.57,694.53,1.631]
[1736652709596,1.07242174,695.55,694.53,1.631]
[1736652713200,1.07242174,695.54,694.53,1.631]
[1736652714200,1.07242174,695.53,694.53,1.631]
[1736652715097,0.28753396,695.57,694.53,1.631]
[1736652721609,1.07242174,695.56,694.53,1.631]